[Event "Titled Tuesday Blitz April 18 Early 2023"]
[White "Petrova, Irina"]
[Black "Lorenzo De La Riva, Lazaro"]
[WhiteFideId "14124122"]
[BlackFideId "2268809"]
[WhiteElo "2084"]
[BlackElo "2294"]
[Result "0-1"]
[Round "10"]
[TimeControl "180+2"]
[Date "2023.04.18"]
[WhiteClock "0:00:31"]
[BlackClock "0:01:23"]

1. e4 {[%clk 0:03:00]}  e6 {[%clk 0:02:55]} 2. d4 {[%clk 0:03:00]}  d5 {[%clk 0:02:56]} 3. Nc3 {[%clk 0:03:00]}  Nf6 {[%clk 0:02:54]} 4. Bg5 {[%clk 0:02:59]}  Bb4 {[%clk 0:02:52]} 5. Ne2 {[%clk 0:02:55]}  dxe4 {[%clk 0:02:50]} 6. a3 {[%clk 0:02:54]}  Be7 {[%clk 0:02:51]} 7. Bxf6 {[%clk 0:02:51]}  gxf6 {[%clk 0:02:52]} 8. Nxe4 {[%clk 0:02:49]}  b6 {[%clk 0:02:49]} 9. g3 {[%clk 0:02:42]}  f5 {[%clk 0:02:42]} 10. N4c3 {[%clk 0:02:42]}  Bb7 {[%clk 0:02:41]} 11. d5 {[%clk 0:02:42]}  Nd7 {[%clk 0:02:34]} 12. Bg2 {[%clk 0:02:36]}  Nf6 {[%clk 0:02:34]} 13. O-O {[%clk 0:02:25]}  Nxd5 {[%clk 0:02:15]} 14. Nxd5 {[%clk 0:02:25]}  Bxd5 {[%clk 0:02:15]} 15. Bxd5 {[%clk 0:02:20]}  Qxd5 {[%clk 0:02:15]} 16. Qxd5 {[%clk 0:02:19]}  exd5 {[%clk 0:02:16]} 17. f4 {[%clk 0:02:13]}  c6 {[%clk 0:02:15]} 18. c3 {[%clk 0:02:13]}  O-O-O {[%clk 0:02:09]} 19. Nd4 {[%clk 0:02:12]}  Bc5 {[%clk 0:02:09]} 20. Kg2 {[%clk 0:02:07]}  Bxd4 {[%clk 0:02:08]} 21. cxd4 {[%clk 0:02:07]}  Rde8 {[%clk 0:02:08]} 22. Rac1 {[%clk 0:02:04]}  Kd7 {[%clk 0:02:07]} 23. Kf3 {[%clk 0:01:58]}  Re4 {[%clk 0:02:07]} 24. Rfd1 {[%clk 0:01:57]}  h5 {[%clk 0:02:05]} 25. Rc3 {[%clk 0:01:55]}  Rh6 {[%clk 0:01:59]} 26. Rd2 {[%clk 0:01:44]}  h4 {[%clk 0:01:58]} 27. g4 {[%clk 0:01:32]}  fxg4+ {[%clk 0:01:48]} 28. Kxg4 {[%clk 0:01:33]}  Rg6+ {[%clk 0:01:48]} 29. Kf3 {[%clk 0:01:31]}  Rf6 {[%clk 0:01:46]} 30. Re3 {[%clk 0:01:14]}  Rfxf4+ {[%clk 0:01:43]} 31. Ke2 {[%clk 0:01:11]}  Rxd4 {[%clk 0:01:43]} 32. Rxd4 {[%clk 0:01:07]}  Rxd4 {[%clk 0:01:44]} 33. Rf3 {[%clk 0:01:08]}  Ke6 {[%clk 0:01:44]} 34. Ke3 {[%clk 0:01:02]}  Re4+ {[%clk 0:01:44]} 35. Kd3 {[%clk 0:01:01]}  c5 {[%clk 0:01:44]} 36. Rf2 {[%clk 0:00:59]}  c4+ {[%clk 0:01:36]} 37. Kc3 {[%clk 0:00:56]}  Re3+ {[%clk 0:01:36]} 38. Kc2 {[%clk 0:00:53]}  Rh3 {[%clk 0:01:36]} 39. a4 {[%clk 0:00:48]}  a6 {[%clk 0:01:34]} 40. Re2+ {[%clk 0:00:45]}  Kd6 {[%clk 0:01:34]} 41. Rf2 {[%clk 0:00:45]}  b5 {[%clk 0:01:33]} 42. axb5 {[%clk 0:00:45]}  axb5 {[%clk 0:01:33]} 43. Rxf7 {[%clk 0:00:44]}  Rxh2+ {[%clk 0:01:30]} 44. Kc3 {[%clk 0:00:45]}  Rh3+ {[%clk 0:01:31]} 45. Kc2 {[%clk 0:00:43]}  b4 {[%clk 0:01:29]} 46. Rh7 {[%clk 0:00:41]}  b3+ {[%clk 0:01:27]} 47. Kd2 {[%clk 0:00:41]}  Kc5 {[%clk 0:01:27]} 48. Rh5 {[%clk 0:00:38]}  Kd4 {[%clk 0:01:26]} 49. Kc1 {[%clk 0:00:35]}  Rh1+ {[%clk 0:01:24]} 50. Kd2 {[%clk 0:00:34]}  Rh2+ {[%clk 0:01:24]} 51. Kc1 {[%clk 0:00:34]}  Ke4 {[%clk 0:01:25]} 52. Rh8 {[%clk 0:00:31]}  Kd3 {[%clk 0:01:23]} 0-1


[Site "https://www.chess.com"]

[Event "Titled Tuesday Blitz April 18 Early 2023"]
[White "Toncheva, Nadya"]
[Black "Gonzalez Zamora, Juan Carlos"]
[WhiteFideId "2924056"]
[BlackFideId "3507548"]
[WhiteElo "2101"]
[BlackElo "2535"]
[Result "1-0"]
[Round "10"]
[TimeControl "180+2"]
[Date "2023.04.18"]
[WhiteClock "0:00:25"]
[BlackClock "0:00:02"]

1. d4 {[%clk 0:02:59]}  Nf6 {[%clk 0:02:59]} 2. c4 {[%clk 0:03:00]}  d6 {[%clk 0:02:59]} 3. Nc3 {[%clk 0:03:00]}  e5 {[%clk 0:02:59]} 4. d5 {[%clk 0:02:59]}  g6 {[%clk 0:02:55]} 5. e4 {[%clk 0:03:00]}  Bg7 {[%clk 0:02:55]} 6. Bd3 {[%clk 0:03:00]}  O-O {[%clk 0:02:55]} 7. Nge2 {[%clk 0:03:01]}  a5 {[%clk 0:02:54]} 8. O-O {[%clk 0:03:02]}  Na6 {[%clk 0:02:54]} 9. f3 {[%clk 0:03:01]}  Nc5 {[%clk 0:02:54]} 10. Bc2 {[%clk 0:03:01]}  c6 {[%clk 0:02:48]} 11. Be3 {[%clk 0:03:02]}  cxd5 {[%clk 0:02:48]} 12. cxd5 {[%clk 0:03:01]}  b6 {[%clk 0:02:47]} 13. a3 {[%clk 0:02:59]}  Nh5 {[%clk 0:02:37]} 14. b4 {[%clk 0:02:59]}  Na6 {[%clk 0:02:33]} 15. Na4 {[%clk 0:02:50]}  Rb8 {[%clk 0:02:25]} 16. b5 {[%clk 0:02:35]}  Nc5 {[%clk 0:02:23]} 17. Nxc5 {[%clk 0:02:34]}  bxc5 {[%clk 0:02:22]} 18. a4 {[%clk 0:02:32]}  f5 {[%clk 0:02:22]} 19. Nc3 {[%clk 0:02:15]}  Bf6 {[%clk 0:02:11]} 20. Nb1 {[%clk 0:02:13]}  Bg5 {[%clk 0:02:10]} 21. Bxg5 {[%clk 0:02:07]}  Qxg5 {[%clk 0:02:11]} 22. Qd2 {[%clk 0:02:08]}  Qh4 {[%clk 0:02:02]} 23. Qf2 {[%clk 0:02:04]}  Qg5 {[%clk 0:01:49]} 24. Nd2 {[%clk 0:02:02]}  Nf4 {[%clk 0:01:43]} 25. Kh1 {[%clk 0:02:02]}  fxe4 {[%clk 0:01:35]} 26. Bxe4 {[%clk 0:02:00]}  Bf5 {[%clk 0:01:32]} 27. Rad1 {[%clk 0:01:51]}  Kh8 {[%clk 0:01:15]} 28. Bxf5 {[%clk 0:01:46]}  gxf5 {[%clk 0:01:15]} 29. Nc4 {[%clk 0:01:45]}  Rf6 {[%clk 0:01:15]} 30. g3 {[%clk 0:01:20]}  Nh5 {[%clk 0:01:11]} 31. b6 {[%clk 0:01:13]}  Rh6 {[%clk 0:01:09]} 32. Kg1 {[%clk 0:01:08]}  Rg8 {[%clk 0:01:01]} 33. b7 {[%clk 0:01:01]}  f4 {[%clk 0:00:33]} 34. g4 {[%clk 0:00:58]}  Nf6 {[%clk 0:00:32]} 35. Nxd6 {[%clk 0:00:55]}  Qg6 {[%clk 0:00:24]} 36. Nc8 {[%clk 0:00:45]}  Nxg4 {[%clk 0:00:20]} 37. fxg4 {[%clk 0:00:42]}  Qxg4+ {[%clk 0:00:21]} 38. Kh1 {[%clk 0:00:42]}  f3 {[%clk 0:00:05]} 39. b8=Q {[%clk 0:00:23]}  Qg2+ {[%clk 0:00:02]} 40. Qxg2 {[%clk 0:00:24]}  fxg2+ {[%clk 0:00:03]} 41. Kg1 {[%clk 0:00:24]}  gxf1=Q+ {[%clk 0:00:02]} 42. Kxf1 {[%clk 0:00:25]} 1-0


[Site "https://www.chess.com"]

[Event "Titled Tuesday Blitz April 18 Early 2023"]
[White "Shuvalov, Evgenij"]
[Black "Balint, Vilmos"]
[WhiteFideId "4187237"]
[BlackFideId "718050"]
[WhiteElo "2080"]
[BlackElo "2034"]
[Result "0-1"]
[Round "10"]
[TimeControl "180+2"]
[Date "2023.04.18"]
[WhiteClock "0:01:11"]
[BlackClock "0:01:12"]

1. d4 {[%clk 0:03:00]}  Nf6 {[%clk 0:02:56]} 2. c4 {[%clk 0:03:00]}  e6 {[%clk 0:02:56]} 3. Nc3 {[%clk 0:02:59]}  Bb4 {[%clk 0:02:57]} 4. f3 {[%clk 0:02:59]}  c5 {[%clk 0:02:56]} 5. d5 {[%clk 0:02:59]}  exd5 {[%clk 0:02:55]} 6. cxd5 {[%clk 0:03:00]}  O-O {[%clk 0:02:55]} 7. e4 {[%clk 0:03:00]}  h6 {[%clk 0:02:55]} 8. Bd3 {[%clk 0:03:00]}  d6 {[%clk 0:02:55]} 9. Ne2 {[%clk 0:03:00]}  Nfd7 {[%clk 0:02:52]} 10. O-O {[%clk 0:02:59]}  Ne5 {[%clk 0:02:53]} 11. Bc2 {[%clk 0:02:58]}  Re8 {[%clk 0:02:52]} 12. Be3 {[%clk 0:02:57]}  Nbd7 {[%clk 0:02:43]} 13. Ba4 {[%clk 0:02:54]}  Re7 {[%clk 0:02:41]} 14. Bxd7 {[%clk 0:02:53]}  Bxd7 {[%clk 0:02:40]} 15. Rb1 {[%clk 0:02:47]}  Rc8 {[%clk 0:02:32]} 16. Qc2 {[%clk 0:02:41]}  a6 {[%clk 0:02:23]} 17. Rfd1 {[%clk 0:02:40]}  Qe8 {[%clk 0:02:13]} 18. Bf4 {[%clk 0:02:34]}  f5 {[%clk 0:02:07]} 19. exf5 {[%clk 0:02:29]}  Qf7 {[%clk 0:01:59]} 20. Ng3 {[%clk 0:02:21]}  g5 {[%clk 0:01:55]} 21. Bc1 {[%clk 0:02:13]}  Rce8 {[%clk 0:01:49]} 22. Nce4 {[%clk 0:02:13]}  c4 {[%clk 0:01:41]} 23. a3 {[%clk 0:02:09]}  Ba5 {[%clk 0:01:33]} 24. Nxd6 {[%clk 0:02:05]}  Bb6+ {[%clk 0:01:34]} 25. Kh1 {[%clk 0:02:04]}  Nd3 {[%clk 0:01:22]} 26. Nxf7 {[%clk 0:01:26]}  Re1+ {[%clk 0:01:21]} 27. Nf1 {[%clk 0:01:26]}  Rxd1 {[%clk 0:01:22]} 28. Nxh6+ {[%clk 0:01:19]}  Kh7 {[%clk 0:01:20]} 29. Qxd1 {[%clk 0:01:18]}  Nf2+ {[%clk 0:01:19]} 30. Kg1 {[%clk 0:01:18]}  Nxd1+ {[%clk 0:01:19]} 31. Kh1 {[%clk 0:01:19]}  Re1 {[%clk 0:01:17]} 32. g4 {[%clk 0:01:16]}  Rxf1+ {[%clk 0:01:14]} 33. Kg2 {[%clk 0:01:16]}  Rg1+ {[%clk 0:01:12]} 34. Kh3 {[%clk 0:01:11]}  Nf2# {[%clk 0:01:12]} 0-1


[Site "https://www.chess.com"]

[Event "Titled Tuesday Blitz April 18 Early 2023"]
[White "Omariev, Maksim"]
[Black "DeyanKostov"]
[WhiteFideId "4193423"]
[WhiteElo "2456"]
[BlackElo "2349"]
[Result "0-1"]
[Round "10"]
[TimeControl "180+2"]
[Date "2023.04.18"]
[WhiteClock "0:00:02"]
[BlackClock "0:01:08"]

1. g4 {[%clk 0:03:00]}  d5 {[%clk 0:02:59]} 2. Bg2 {[%clk 0:03:01]}  c6 {[%clk 0:02:57]} 3. h3 {[%clk 0:03:01]}  g6 {[%clk 0:02:55]} 4. d4 {[%clk 0:03:01]}  Bg7 {[%clk 0:02:56]} 5. Nf3 {[%clk 0:03:02]}  Nf6 {[%clk 0:02:55]} 6. c3 {[%clk 0:03:02]}  O-O {[%clk 0:02:55]} 7. Bf4 {[%clk 0:03:03]}  Ne4 {[%clk 0:02:54]} 8. Nbd2 {[%clk 0:03:03]}  f5 {[%clk 0:02:54]} 9. Be5 {[%clk 0:02:53]}  fxg4 {[%clk 0:02:52]} 10. hxg4 {[%clk 0:02:39]}  Bxg4 {[%clk 0:02:51]} 11. Bxg7 {[%clk 0:02:35]}  Kxg7 {[%clk 0:02:52]} 12. Nxe4 {[%clk 0:02:33]}  dxe4 {[%clk 0:02:46]} 13. Ng5 {[%clk 0:02:34]}  h6 {[%clk 0:02:46]} 14. Nxe4 {[%clk 0:02:33]}  Nd7 {[%clk 0:02:42]} 15. Qd2 {[%clk 0:02:33]}  Rh8 {[%clk 0:02:40]} 16. O-O-O {[%clk 0:02:33]}  Nf6 {[%clk 0:02:40]} 17. Nc5 {[%clk 0:02:32]}  b6 {[%clk 0:02:35]} 18. Nd3 {[%clk 0:02:31]}  Rc8 {[%clk 0:02:29]} 19. Ne5 {[%clk 0:02:20]}  Be6 {[%clk 0:02:26]} 20. Kb1 {[%clk 0:01:51]}  c5 {[%clk 0:02:23]} 21. Rdg1 {[%clk 0:01:47]}  cxd4 {[%clk 0:02:16]} 22. cxd4 {[%clk 0:01:48]}  Bf5+ {[%clk 0:02:07]} 23. e4 {[%clk 0:00:55]}  Nxe4 {[%clk 0:02:02]} 24. Bxe4 {[%clk 0:00:46]}  Bxe4+ {[%clk 0:02:03]} 25. Ka1 {[%clk 0:00:47]}  Qd6 {[%clk 0:01:58]} 26. Rh4 {[%clk 0:00:42]}  Bf5 {[%clk 0:01:56]} 27. Nxg6 {[%clk 0:00:36]}  Bxg6 {[%clk 0:01:45]} 28. Rhg4 {[%clk 0:00:35]}  Rhf8 {[%clk 0:01:35]} 29. Rxg6+ {[%clk 0:00:25]}  Qxg6 {[%clk 0:01:36]} 30. Rxg6+ {[%clk 0:00:26]}  Kxg6 {[%clk 0:01:37]} 31. Qe3 {[%clk 0:00:23]}  Rxf2 {[%clk 0:01:31]} 32. Qe6+ {[%clk 0:00:20]}  Rf6 {[%clk 0:01:28]} 33. Qg4+ {[%clk 0:00:16]}  Kf7 {[%clk 0:01:25]} 34. Qh5+ {[%clk 0:00:13]}  Kg7 {[%clk 0:01:23]} 35. a3 {[%clk 0:00:10]}  Rc1+ {[%clk 0:01:23]} 36. Ka2 {[%clk 0:00:10]}  Rcf1 {[%clk 0:01:23]} 37. Qe5 {[%clk 0:00:10]}  Kf7 {[%clk 0:01:21]} 38. Qd5+ {[%clk 0:00:08]}  Kf8 {[%clk 0:01:18]} 39. Qa8+ {[%clk 0:00:08]}  Kf7 {[%clk 0:01:19]} 40. Qxa7 {[%clk 0:00:09]}  h5 {[%clk 0:01:19]} 41. Qd7 {[%clk 0:00:08]}  R1f4 {[%clk 0:01:16]} 42. d5 {[%clk 0:00:07]}  h4 {[%clk 0:01:15]} 43. b4 {[%clk 0:00:05]}  h3 {[%clk 0:01:10]} 44. Kb3 {[%clk 0:00:02]}  h2 {[%clk 0:01:08]} 0-1


[Site "https://www.chess.com"]

[Event "Titled Tuesday Blitz April 18 Early 2023"]
[White "Estrada Nieto, Julian"]
[Black "ibove"]
[WhiteFideId "5101018"]
[WhiteElo "2161"]
[BlackElo "2333"]
[Result "0-1"]
[Round "10"]
[TimeControl "180+2"]
[Date "2023.04.18"]
[WhiteClock "0:00:05"]
[BlackClock "0:00:14"]

1. e4 {[%clk 0:03:00]}  c5 {[%clk 0:02:58]} 2. Nf3 {[%clk 0:03:01]}  d6 {[%clk 0:02:58]} 3. Bb5+ {[%clk 0:03:00]}  Nd7 {[%clk 0:02:54]} 4. d4 {[%clk 0:03:00]}  cxd4 {[%clk 0:02:54]} 5. Qxd4 {[%clk 0:02:59]}  Nf6 {[%clk 0:02:52]} 6. Bg5 {[%clk 0:02:57]}  a6 {[%clk 0:02:41]} 7. Bxd7+ {[%clk 0:02:56]}  Bxd7 {[%clk 0:02:42]} 8. Nc3 {[%clk 0:02:56]}  Bc6 {[%clk 0:02:39]} 9. O-O-O {[%clk 0:02:53]}  Qa5 {[%clk 0:02:39]} 10. Kb1 {[%clk 0:02:47]}  Rc8 {[%clk 0:02:29]} 11. Rhe1 {[%clk 0:02:44]}  Ng4 {[%clk 0:02:21]} 12. h3 {[%clk 0:02:17]}  Ne5 {[%clk 0:02:17]} 13. Bd2 {[%clk 0:02:04]}  Nxf3 {[%clk 0:02:10]} 14. gxf3 {[%clk 0:02:05]}  Qc5 {[%clk 0:02:09]} 15. Qxc5 {[%clk 0:01:56]}  dxc5 {[%clk 0:02:10]} 16. Be3 {[%clk 0:01:57]}  e6 {[%clk 0:02:09]} 17. f4 {[%clk 0:01:53]}  Be7 {[%clk 0:02:08]} 18. Rd2 {[%clk 0:01:33]}  f6 {[%clk 0:01:57]} 19. Red1 {[%clk 0:01:32]}  Kf7 {[%clk 0:01:57]} 20. f3 {[%clk 0:01:30]}  b6 {[%clk 0:01:56]} 21. Ne2 {[%clk 0:01:27]}  Rhd8 {[%clk 0:01:56]} 22. c4 {[%clk 0:01:20]}  Rxd2 {[%clk 0:01:54]} 23. Rxd2 {[%clk 0:01:21]}  Rd8 {[%clk 0:01:55]} 24. Kc2 {[%clk 0:01:19]}  Rxd2+ {[%clk 0:01:53]} 25. Bxd2 {[%clk 0:01:19]}  Bd8 {[%clk 0:01:50]} 26. Kd3 {[%clk 0:01:05]}  Bc7 {[%clk 0:01:46]} 27. Bc3 {[%clk 0:01:03]}  Kg6 {[%clk 0:01:43]} 28. Ke3 {[%clk 0:00:57]}  Kh5 {[%clk 0:01:42]} 29. Kf2 {[%clk 0:00:54]}  Kh4 {[%clk 0:01:37]} 30. Kg2 {[%clk 0:00:53]}  b5 {[%clk 0:01:29]} 31. b3 {[%clk 0:00:46]}  a5 {[%clk 0:01:14]} 32. Be1+ {[%clk 0:00:43]}  Kh5 {[%clk 0:01:11]} 33. Bf2 {[%clk 0:00:39]}  Bd6 {[%clk 0:01:05]} 34. Nc3 {[%clk 0:00:24]}  bxc4 {[%clk 0:00:53]} 35. bxc4 {[%clk 0:00:23]}  Kg6 {[%clk 0:00:36]} 36. Bg3 {[%clk 0:00:23]}  Kf7 {[%clk 0:00:32]} 37. f5 {[%clk 0:00:20]}  Bxg3 {[%clk 0:00:30]} 38. fxe6+ {[%clk 0:00:20]}  Kxe6 {[%clk 0:00:30]} 39. Kxg3 {[%clk 0:00:21]}  Ke5 {[%clk 0:00:30]} 40. Ne2 {[%clk 0:00:19]}  Ba4 {[%clk 0:00:30]} 41. f4+ {[%clk 0:00:15]}  Kxe4 {[%clk 0:00:16]} 42. Nc3+ {[%clk 0:00:15]}  Kd3 {[%clk 0:00:17]} 43. Nxa4 {[%clk 0:00:15]}  Kxc4 {[%clk 0:00:18]} 44. f5 {[%clk 0:00:13]}  Kb4 {[%clk 0:00:18]} 45. Nb6 {[%clk 0:00:13]}  Ka3 {[%clk 0:00:17]} 46. Nc4+ {[%clk 0:00:13]}  Kxa2 {[%clk 0:00:17]} 47. Nxa5 {[%clk 0:00:13]}  Ka3 {[%clk 0:00:18]} 48. Kf3 {[%clk 0:00:13]}  Kb4 {[%clk 0:00:18]} 49. Nc6+ {[%clk 0:00:12]}  Kb5 {[%clk 0:00:18]} 50. Ne7 {[%clk 0:00:10]}  c4 {[%clk 0:00:18]} 51. Ke4 {[%clk 0:00:10]}  Kc5 {[%clk 0:00:19]} 52. Nd5 {[%clk 0:00:10]}  Kd6 {[%clk 0:00:18]} 53. Kd4 {[%clk 0:00:10]}  g6 {[%clk 0:00:14]} 54. fxg6 {[%clk 0:00:08]}  hxg6 {[%clk 0:00:15]} 55. Nxf6 {[%clk 0:00:08]}  Ke6 {[%clk 0:00:15]} 56. Ne4 {[%clk 0:00:08]}  Kf5 {[%clk 0:00:16]} 57. Ke3 {[%clk 0:00:05]}  Ke5 {[%clk 0:00:12]} 58. Nc3 {[%clk 0:00:04]}  Kf5 {[%clk 0:00:12]} 59. Kf3 {[%clk 0:00:04]}  Ke5 {[%clk 0:00:12]} 60. Ke3 {[%clk 0:00:04]}  Kf5 {[%clk 0:00:13]} 61. Ne2 {[%clk 0:00:04]}  Kg5 {[%clk 0:00:13]} 62. Kf3 {[%clk 0:00:04]}  Kh4 {[%clk 0:00:13]} 63. Kg2 {[%clk 0:00:05]}  g5 {[%clk 0:00:14]} 0-1


[Site "https://www.chess.com"]

[Event "Titled Tuesday Blitz April 18 Early 2023"]
[White "Kubatko, Ivan"]
[Black "Blokhin, Sofia"]
[WhiteFideId "24111473"]
[BlackFideId "4508190"]
[WhiteElo "2285"]
[BlackElo "1994"]
[Result "0-1"]
[Round "10"]
[TimeControl "180+2"]
[Date "2023.04.18"]
[WhiteClock "0:00:17"]
[BlackClock "0:01:26"]

1. e4 {[%clk 0:02:57]}  c5 {[%clk 0:02:59]} 2. c3 {[%clk 0:02:50]}  e6 {[%clk 0:02:56]} 3. d4 {[%clk 0:02:50]}  d5 {[%clk 0:02:55]} 4. exd5 {[%clk 0:02:50]}  exd5 {[%clk 0:02:54]} 5. Nf3 {[%clk 0:02:51]}  Nf6 {[%clk 0:02:54]} 6. Be3 {[%clk 0:02:46]}  cxd4 {[%clk 0:02:53]} 7. Nxd4 {[%clk 0:02:44]}  Nc6 {[%clk 0:02:50]} 8. Bb5 {[%clk 0:02:43]}  Bd7 {[%clk 0:02:48]} 9. O-O {[%clk 0:02:42]}  Be7 {[%clk 0:02:48]} 10. Nd2 {[%clk 0:02:38]}  O-O {[%clk 0:02:47]} 11. N2f3 {[%clk 0:02:35]}  a6 {[%clk 0:02:42]} 12. Be2 {[%clk 0:02:21]}  Bd6 {[%clk 0:02:37]} 13. Bg5 {[%clk 0:02:15]}  h6 {[%clk 0:02:35]} 14. Bh4 {[%clk 0:02:15]}  g5 {[%clk 0:02:28]} 15. Bg3 {[%clk 0:02:15]}  Bxg3 {[%clk 0:02:28]} 16. hxg3 {[%clk 0:02:08]}  Ne4 {[%clk 0:02:27]} 17. Nxc6 {[%clk 0:01:02]}  bxc6 {[%clk 0:02:22]} 18. c4 {[%clk 0:01:00]}  Be6 {[%clk 0:02:09]} 19. Nd4 {[%clk 0:00:56]}  c5 {[%clk 0:02:05]} 20. Nxe6 {[%clk 0:00:52]}  fxe6 {[%clk 0:02:06]} 21. cxd5 {[%clk 0:00:53]}  exd5 {[%clk 0:02:05]} 22. Bf3 {[%clk 0:00:41]}  Nf6 {[%clk 0:01:46]} 23. Qc2 {[%clk 0:00:40]}  g4 {[%clk 0:01:42]} 24. Qg6+ {[%clk 0:00:39]}  Kh8 {[%clk 0:01:41]} 25. Qxh6+ {[%clk 0:00:36]}  Kg8 {[%clk 0:01:39]} 26. Qg6+ {[%clk 0:00:36]}  Kh8 {[%clk 0:01:39]} 27. Bxg4 {[%clk 0:00:35]}  Nxg4 {[%clk 0:01:34]} 28. Qxg4 {[%clk 0:00:35]}  Ra7 {[%clk 0:01:33]} 29. Rfe1 {[%clk 0:00:33]}  Rh7 {[%clk 0:01:31]} 30. Rad1 {[%clk 0:00:24]}  Qf6 {[%clk 0:01:30]} 31. Qf3 {[%clk 0:00:17]}  Qh6 {[%clk 0:01:26]} 0-1


[Site "https://www.chess.com"]

[Event "Titled Tuesday Blitz April 18 Early 2023"]
[White "Golubev, Mikhail"]
[Black "Kalajzic, Ivan"]
[WhiteFideId "14100983"]
[BlackFideId "14506378"]
[WhiteElo "2374"]
[BlackElo "2203"]
[Result "1-0"]
[Round "10"]
[TimeControl "180+2"]
[Date "2023.04.18"]
[WhiteClock "0:01:14"]
[BlackClock "0:01:25"]

1. e4 {[%clk 0:03:00]}  c6 {[%clk 0:02:59]} 2. d4 {[%clk 0:02:58]}  d5 {[%clk 0:02:59]} 3. Nc3 {[%clk 0:02:59]}  b5 {[%clk 0:02:58]} 4. e5 {[%clk 0:02:50]}  b4 {[%clk 0:02:57]} 5. Nce2 {[%clk 0:02:49]}  Bf5 {[%clk 0:02:56]} 6. Ng3 {[%clk 0:02:43]}  Bg6 {[%clk 0:02:55]} 7. h4 {[%clk 0:02:42]}  h6 {[%clk 0:02:55]} 8. h5 {[%clk 0:02:42]}  Bh7 {[%clk 0:02:55]} 9. Bd3 {[%clk 0:02:42]}  Bxd3 {[%clk 0:02:53]} 10. Qxd3 {[%clk 0:02:43]}  e6 {[%clk 0:02:52]} 11. f4 {[%clk 0:02:38]}  Qb6 {[%clk 0:02:43]} 12. f5 {[%clk 0:02:33]}  Qa6 {[%clk 0:02:39]} 13. fxe6 {[%clk 0:02:29]}  Qxd3 {[%clk 0:02:34]} 14. exf7+ {[%clk 0:02:28]}  Kxf7 {[%clk 0:02:35]} 15. cxd3 {[%clk 0:02:28]}  Ne7 {[%clk 0:02:24]} 16. N1e2 {[%clk 0:02:26]}  g5 {[%clk 0:02:17]} 17. O-O+ {[%clk 0:02:24]}  Ke8 {[%clk 0:02:15]} 18. Be3 {[%clk 0:02:14]}  Rh7 {[%clk 0:02:06]} 19. Rf6 {[%clk 0:02:00]}  Nd7 {[%clk 0:02:00]} 20. Rd6 {[%clk 0:01:43]}  Rc8 {[%clk 0:01:51]} 21. Rc1 {[%clk 0:01:40]}  Nb8 {[%clk 0:01:33]} 22. Rf6 {[%clk 0:01:24]}  Nd7 {[%clk 0:01:30]} 23. Rf2 {[%clk 0:01:17]}  Rf7 {[%clk 0:01:29]} 24. e6 {[%clk 0:01:15]}  Rxf2 {[%clk 0:01:25]} 25. exd7+ {[%clk 0:01:15]}  Kxd7 {[%clk 0:01:25]} 26. Kxf2 {[%clk 0:01:14]} 1-0


[Site "https://www.chess.com"]

[Event "Titled Tuesday Blitz April 18 Early 2023"]
[White "Bashirli, Saadat"]
[Black "Jimenez Jimenez, Leandro"]
[WhiteFideId "13429990"]
[BlackFideId "6415253"]
[WhiteElo "1408"]
[BlackElo "2263"]
[Result "0-1"]
[Round "10"]
[TimeControl "180+2"]
[Date "2023.04.18"]
[WhiteClock "0:00:01"]
[BlackClock "0:00:12"]

1. d4 {[%clk 0:03:00]}  d5 {[%clk 0:02:53]} 2. e3 {[%clk 0:02:58]}  c5 {[%clk 0:02:49]} 3. f4 {[%clk 0:02:58]}  Nc6 {[%clk 0:02:39]} 4. Nf3 {[%clk 0:02:57]}  Nf6 {[%clk 0:02:35]} 5. c3 {[%clk 0:02:54]}  Bf5 {[%clk 0:02:27]} 6. Bd3 {[%clk 0:02:51]}  Bxd3 {[%clk 0:02:25]} 7. Qxd3 {[%clk 0:02:52]}  e6 {[%clk 0:02:25]} 8. Nbd2 {[%clk 0:02:50]}  Bd6 {[%clk 0:02:16]} 9. O-O {[%clk 0:02:41]}  O-O {[%clk 0:02:14]} 10. Ne5 {[%clk 0:02:40]}  Ne7 {[%clk 0:02:06]} 11. Ndf3 {[%clk 0:02:35]}  Nf5 {[%clk 0:02:05]} 12. g4 {[%clk 0:02:14]}  Bxe5 {[%clk 0:02:05]} 13. Nxe5 {[%clk 0:02:08]}  Nd6 {[%clk 0:02:04]} 14. Bd2 {[%clk 0:01:55]}  Nfe4 {[%clk 0:02:00]} 15. h3 {[%clk 0:01:51]}  Qh4 {[%clk 0:01:56]} 16. Rf3 {[%clk 0:01:43]}  Rfd8 {[%clk 0:01:34]} 17. Be1 {[%clk 0:01:39]}  Qe7 {[%clk 0:01:30]} 18. Rf1 {[%clk 0:01:32]}  b5 {[%clk 0:01:20]} 19. a4 {[%clk 0:01:28]}  c4 {[%clk 0:01:15]} 20. Qc2 {[%clk 0:01:16]}  Qb7 {[%clk 0:01:11]} 21. Bh4 {[%clk 0:00:46]}  f6 {[%clk 0:01:10]} 22. Nf3 {[%clk 0:00:43]}  b4 {[%clk 0:01:10]} 23. Be1 {[%clk 0:00:27]}  a5 {[%clk 0:01:06]} 24. Nd2 {[%clk 0:00:23]}  Nxd2 {[%clk 0:01:06]} 25. Bxd2 {[%clk 0:00:24]}  Ne4 {[%clk 0:01:06]} 26. Be1 {[%clk 0:00:24]}  Rdb8 {[%clk 0:00:49]} 27. Bd2 {[%clk 0:00:19]}  Qd7 {[%clk 0:00:34]} 28. Rab1 {[%clk 0:00:15]}  b3 {[%clk 0:00:32]} 29. Qc1 {[%clk 0:00:13]}  Qxa4 {[%clk 0:00:33]} 30. Ra1 {[%clk 0:00:09]}  Qd7 {[%clk 0:00:29]} 31. Be1 {[%clk 0:00:08]}  a4 {[%clk 0:00:25]} 32. Ra3 {[%clk 0:00:07]}  Nd6 {[%clk 0:00:21]} 33. Qd2 {[%clk 0:00:02]}  Nb5 {[%clk 0:00:21]} 34. Ra1 {[%clk 0:00:03]}  a3 {[%clk 0:00:21]} 35. bxa3 {[%clk 0:00:02]}  Nxa3 {[%clk 0:00:17]} 36. Bf2 {[%clk 0:00:01]}  Nc2 {[%clk 0:00:17]} 37. Rxa8 {[%clk 0:00:01]}  Rxa8 {[%clk 0:00:17]} 38. Rb1 {[%clk 0:00:02]}  f5 {[%clk 0:00:16]} 39. g5 {[%clk 0:00:01]}  Ra2 {[%clk 0:00:13]} 40. Qd1 {[%clk 0:00:01]}  Qa4 {[%clk 0:00:12]} 41. Qc1 {[%clk 0:00:01]}  Qa3 {[%clk 0:00:12]} 0-1


[Site "https://www.chess.com"]